bitfinex-derivatives/quotes_BTCF0:USTF0_20241010
["timestamp","ask_amount","ask_price","bid_price","bid_amount"]
[1728559722834,0.203763,61217.0,61216.0,0.112763]
[1728559723031,0.203763,61217.0,61216.0,0.473563]
[1728559726836,0.27538961,61217.0,61216.0,0.473563]
[1728559731139,0.40592554,61217.0,61216.0,0.473563]
[1728559731337,0.27538961,61217.0,61216.0,0.473563]
[1728559732540,0.2753896,61217.0,61216.0,0.473563]
[1728559734842,0.203763,61217.0,61216.0,0.473563]
[1728559735827,0.203763,61217.0,61216.0,0.463563]
[1728559736620,0.203763,61217.0,61216.0,0.3818]
[1728559739814,0.203763,61217.0,61216.0,0.021]
[1728559741821,0.32559176,61217.0,61216.0,0.021]
[1728559742526,0.48903371,61217.0,61216.0,0.021]
[1728559742815,0.27091682,61217.0,61216.0,0.222763]
[1728559743018,0.20437099,61217.0,61216.0,0.222763]
[1728559743213,0.07363412,61217.0,61216.0,0.222763]
[1728559743413,0.07363412,61217.0,61216.0,0.232763]
[1728559745316,0.07363412,61217.0,61216.0,0.222763]
[1728559749030,0.13273687,61217.0,61216.0,0.222763]
[1728559749215,0.07363412,61217.0,61216.0,1.432843]
[1728559749417,0.11631816,61217.0,61216.0,1.432843]
[1728559749612,0.03358836,61217.0,61216.0,1.432843]
[1728559749827,0.002,61217.0,61216.0,1.432843]
[1728559750130,0.002,61217.0,61216.0,1.442843]
[1728559750322,0.08175,61226.0,61225.0,0.081751]
[1728559750521,0.08175,61226.0,61225.0,0.562551]
[1728559751119,0.081746,61229.0,61228.0,0.081746]
[1728559751319,0.081746,61229.0,61228.0,0.201746]
[1728559752430,0.084746,61229.0,61228.0,0.201746]
[1728559752625,0.003,61229.0,61228.0,0.201746]
[1728559752831,0.005,61229.0,61228.0,0.201746]
[1728559757325,0.08675553,61229.0,61228.0,0.201746]
[1728559757526,0.16803441,61229.0,61228.0,0.201746]
[1728559757932,0.28982225,61229.0,61228.0,0.201746]
[1728559758538,0.12678784,61229.0,61228.0,0.201746]
[1728559759531,0.12678704,61229.0,61228.0,0.201746]
[1728559761243,0.12678704,61229.0,61228.0,0.562546]
[1728559762740,0.16796279,61229.0,61228.0,0.562546]
[1728559763039,0.28974983,61229.0,61228.0,0.562546]
[1728559764337,0.12678672,61229.0,61228.0,0.562546]
[1728559764727,0.005,61229.0,61228.0,0.562546]
[1728559768034,0.005,61229.0,61228.0,0.562546]
[1728559774144,0.081736,61237.0,61236.0,0.081737]
[1728559774347,0.081736,61237.0,61236.0,0.562537]
[1728559775233,0.081736,61237.0,61236.0,0.563537]
[1728559775442,0.092736,61237.0,61236.0,0.563537]
[1728559775830,0.092736,61237.0,61236.0,0.564537]
[1728559775831,0.103736,61237.0,61236.0,0.564537]
[1728559779937,0.17533967,61237.0,61236.0,0.564537]
[1728559780140,0.22551298,61237.0,61236.0,0.564537]
[1728559780440,0.28414009,61237.0,61236.0,0.564537]
[1728559784052,0.28114009,61237.0,61236.0,0.564537]
[1728559784238,0.19940409,61237.0,61236.0,0.564537]
[1728559784445,0.14077698,61237.0,61236.0,0.564537]
[1728559785040,0.09060367,61237.0,61236.0,0.564537]
[1728559785541,0.14077698,61237.0,61236.0,0.564537]
[1728559787046,0.002,61237.0,61236.0,0.562537]
[1728559787241,0.003,61237.0,61236.0,0.562537]
[1728559788937,0.003,61237.0,61236.0,0.442537]
[1728559789149,0.003,61237.0,61236.0,0.562537]
[1728559790646,0.084735,61237.0,61236.0,0.081737]
[1728559791147,0.081743,61233.0,61232.0,0.081741]
[1728559791344,0.201743,61233.0,61232.0,0.081741]
[1728559792352,0.202743,61233.0,61232.0,0.094741]
[1728559793344,0.203743,61233.0,61232.0,0.108741]
[1728559796146,0.2281018,61233.0,61232.0,0.108741]
[1728559796441,0.34988895,61233.0,61232.0,0.108741]
[1728559796843,0.57478628,61233.0,61232.0,0.108741]
[1728559797360,0.41148895,61233.0,61232.0,0.108741]
[1728559800952,0.17954595,61233.0,61232.0,0.108741]
[1728559801456,0.14898223,61233.0,61232.0,0.108741]
[1728559801757,0.12378715,61233.0,61232.0,0.108741]
[1728559801957,0.14898115,61233.0,61232.0,0.108741]
[1728559802153,0.12378715,61233.0,61232.0,0.108741]
[1728559802459,0.16329733,61237.0,61236.0,0.081737]
[1728559802757,0.16329733,61237.0,61236.0,0.78007102]
[1728559803343,0.16329733,61237.0,61236.0,0.68238096]
[1728559804148,0.16429733,61237.0,61236.0,0.68238096]
[1728559804557,0.16529733,61237.0,61236.0,0.68238096]
[1728559805049,0.16529733,61237.0,61236.0,0.32158096]
[1728559805252,0.16529733,61237.0,61236.0,0.68238096]
[1728559806459,0.16529733,61237.0,61236.0,0.78006533]
[1728559809360,0.16529733,61237.0,61236.0,0.562537]
[1728559809560,0.16529733,61237.0,61236.0,0.58612251]
[1728559810458,0.16529733,61237.0,61236.0,0.46612251]
[1728559811255,0.16529733,61237.0,61236.0,0.58612251]
[1728559812263,0.002,61237.0,61236.0,0.58612251]
[1728559815564,0.002,61237.0,61236.0,0.22532251]
[1728559815769,0.002,61237.0,61236.0,0.58612251]
[1728559817560,0.07360052,61237.0,61236.0,0.58612251]
[1728559818669,0.07360052,61237.0,61236.0,0.22532251]
[1728559818872,0.07360052,61237.0,61236.0,0.58612251]
[1728559823269,0.07360052,61237.0,61236.0,0.70612251]
[1728559823270,0.03357354,61237.0,61236.0,0.70612251]
[1728559823467,0.03357354,61237.0,61236.0,0.58612251]
[1728559823468,0.04202329,61237.0,61236.0,0.58612251]
[1728559823676,0.03357354,61237.0,61236.0,0.58612251]
[1728559823972,0.002,61237.0,61236.0,0.58612251]
[1728559824378,0.002,61237.0,61236.0,0.70594786]
[1728559828267,0.002,61237.0,61236.0,1.06674786]
[1728559828964,0.002,61237.0,61236.0,1.06673151]
[1728559829776,0.002,61237.0,61236.0,1.07673151]
[1728559830880,0.002,61237.0,61236.0,1.15808737]
[1728559831179,0.002,61237.0,61236.0,1.07673151]
[1728559832382,0.002,61237.0,61236.0,0.95692251]
[1728559833183,0.07359557,61237.0,61236.0,0.23532251]
[1728559833387,0.07359557,61237.0,61236.0,0.95692251]
[1728559834184,0.03357136,61237.0,61236.0,0.95692251]
[1728559834988,0.14795397,61237.0,61236.0,0.95692251]
[1728559835375,0.03357136,61237.0,61236.0,0.95692251]
[1728559836605,0.03357136,61237.0,61236.0,0.59612251]
[1728559837686,0.03257136,61237.0,61236.0,0.23532251]
[1728559837889,0.03357136,61237.0,61236.0,0.60312251]
[1728559838572,0.03357136,61237.0,61236.0,0.61012251]
[1728559839084,0.03257136,61237.0,61236.0,0.60312251]
[1728559839281,0.03257136,61237.0,61236.0,0.61012251]
[1728559839484,0.002,61237.0,61236.0,0.84182033]
[1728559839789,0.002,61237.0,61236.0,0.88719016]
[1728559841483,0.02389037,61247.0,61246.0,0.081723]
[1728559841680,0.081721,61248.0,61247.0,0.081722]
[1728559841881,0.081721,61248.0,61247.0,0.16310765]
[1728559843183,0.081721,61248.0,61247.0,0.52390765]
[1728559843484,0.089721,61248.0,61247.0,0.52490765]
[1728559843883,0.085721,61248.0,61247.0,0.52390765]
[1728559844590,0.085721,61248.0,61247.0,0.64381086]
[1728559845984,0.088721,61248.0,61247.0,0.64381086]
[1728559847589,0.088721,61248.0,61247.0,0.442522]
[1728559847590,0.21048296,61248.0,61247.0,0.442522]
[1728559851878,0.26910286,61248.0,61247.0,0.442522]
[1728559852180,0.39011004,61248.0,61247.0,0.081722]
[1728559852382,0.44872992,61248.0,61247.0,0.442522]
[1728559852691,0.26910285,61248.0,61247.0,0.442522]
[1728559853684,0.12876196,61248.0,61247.0,0.562522]
[1728559854490,0.007,61248.0,61247.0,0.562522]
[1728559855298,0.11442424,61268.0,61247.0,1.34763062]
[1728559855603,0.063,61276.0,61267.0,0.3608]
[1728559855788,0.12,61275.0,61268.0,0.04877479]
[1728559855988,0.12,61269.0,61265.0,0.06503305]
[1728559856183,0.081692,61270.0,61269.0,0.081692]
[1728559856492,0.081691,61270.0,61269.0,0.3608]
[1728559856687,0.12,61274.0,61268.0,0.12]
[1728559856888,0.081693,61269.0,61268.0,0.12]
[1728559857090,0.12,61274.0,61264.0,0.04874191]
[1728559857091,0.081698,61265.0,61264.0,0.04874191]
[1728559857285,0.081698,61265.0,61263.0,0.0817]
[1728559857286,0.081701,61264.0,61263.0,0.0817]
[1728559857491,0.113101,61264.0,61263.0,0.0817]
[1728559858804,0.0314,61264.0,61263.0,0.2017]
[1728559860099,0.0364,61264.0,61263.0,0.2017]
[1728559860497,0.081701,61263.0,61259.0,0.081705]
[1728559860692,0.0364,61264.0,61257.0,0.081706]
[1728559860693,0.081707,61258.0,61257.0,0.081706]
[1728559860895,0.08171,61256.0,61255.0,0.442511]
[1728559861299,0.08171,61256.0,61255.0,0.3608]
[1728559861502,0.081717,61252.0,61251.0,0.081715]
[1728559861897,0.081717,61251.0,61250.0,0.3608]
[1728559862099,0.113117,61251.0,61250.0,0.3608]
[1728559862292,0.005,61264.0,61263.0,0.081701]
[1728559862901,0.562497,61266.0,61264.0,0.081699]
[1728559863097,0.08414748,61265.0,61264.0,0.081699]
[1728559864400,0.26977976,61265.0,61264.0,0.081699]
[1728559864602,0.09787093,61265.0,61264.0,0.081699]
[1728559864903,0.25359309,61265.0,61264.0,0.081699]
[1728559865216,0.25114361,61265.0,61264.0,0.081699]
[1728559865501,0.14110278,61265.0,61264.0,0.082699]
[1728559865702,0.17943939,61265.0,61264.0,0.083699]
[1728559865908,0.06540478,61265.0,61264.0,0.083699]
[1728559866202,0.14710278,61265.0,61264.0,0.083699]
[1728559867994,0.14710278,61265.0,61264.0,0.002]
[1728559868192,0.17810278,61265.0,61264.0,0.002]
[1728559868804,0.21812064,61265.0,61264.0,0.002]
[1728559869995,0.21812285,61265.0,61264.0,0.002]
[1728559870401,0.21812285,61265.0,61264.0,0.083699]
[1728559871498,0.21812285,61265.0,61264.0,0.002]
[1728559873103,0.57892285,61265.0,61264.0,0.002]
[1728559873508,0.62908328,61265.0,61264.0,0.002]
[1728559873909,0.08171,61257.0,61256.0,0.08171]
[1728559874133,0.27329551,61257.0,61256.0,0.08171]
[1728559874607,0.081713,61254.0,61253.0,0.084154]
[1728559874813,0.081713,61254.0,61253.0,0.081714]
[1728559874814,0.15329939,61254.0,61253.0,0.081714]
[1728559874998,0.27329939,61254.0,61253.0,0.081714]
[1728559875206,0.081718,61250.0,61249.0,0.201717]
[1728559875400,0.15330439,61250.0,61249.0,0.201717]
[1728559875913,0.28368944,61250.0,61249.0,0.201717]
[1728559876112,0.03156731,61250.0,61249.0,0.201717]
[1728559876305,0.07159063,61252.0,61249.0,0.134]
[1728559876609,0.13038505,61254.0,61250.0,0.081718]
[1728559876610,0.07159063,61251.0,61250.0,0.081718]
[1728559876813,0.11410192,61251.0,61250.0,0.081718]
[1728559877114,0.11410192,61251.0,61250.0,0.201718]
[1728559877315,0.14566923,61251.0,61250.0,0.201718]
[1728559877505,0.14567649,61251.0,61250.0,0.201718]
[1728559877699,0.02321949,61254.0,61253.0,0.081714]
[1728559877910,0.081711,61255.0,61254.0,0.081713]
[1728559879115,0.10495205,61255.0,61254.0,0.081713]
[1728559879513,0.10595205,61255.0,61254.0,0.109713]
[1728559886020,0.10595205,61255.0,61254.0,0.028]
[1728559886222,0.10595205,61255.0,61246.0,0.57911218]
[1728559886223,0.081718,61250.0,61248.0,0.04863913]
[1728559886413,0.081718,61250.0,61242.0,0.1519]
[1728559886414,0.4808,61249.0,61245.0,0.04863913]
[1728559886611,0.4808,61249.0,61234.0,0.11176522]
[1728559886612,0.081726,61244.0,61242.0,0.04863913]
[1728559886814,0.12,61243.0,61241.0,0.13281737]
[1728559887120,0.081729,61242.0,61241.0,0.13281737]
[1728559887415,0.081729,61242.0,61241.0,0.08417824]
[1728559887721,0.081729,61242.0,61241.0,0.08417924]
[1728559888219,0.081729,61242.0,61241.0,0.08173]
[1728559888912,0.082729,61242.0,61241.0,0.09173]
[1728559889417,0.082729,61242.0,61241.0,0.09573]
[1728559889418,0.083729,61242.0,61241.0,0.09573]
[1728559890117,0.082729,61242.0,61241.0,0.09173]
[1728559890310,0.083729,61242.0,61241.0,0.09173]
[1728559890514,0.10812369,61242.0,61241.0,0.09173]
[1728559891024,0.10712369,61242.0,61241.0,0.08173]
[1728559891220,0.10812369,61242.0,61241.0,0.09173]
[1728559891423,0.10812369,61242.0,61241.0,0.21173]
[1728559891614,0.13969909,61242.0,61241.0,0.21173]
[1728559892520,0.0335754,61242.0,61241.0,0.33173]
[1728559892720,0.0315731,61242.0,61241.0,0.33173]
[1728559892912,0.19582718,61250.0,61241.0,0.33173]
[1728559893115,0.03157193,61249.0,61248.0,0.081721]
[1728559894231,0.11408626,61249.0,61248.0,0.201721]
[1728559894416,0.14665819,61249.0,61248.0,0.282721]
[1728559894616,0.03257193,61249.0,61248.0,0.282721]
[1728559895629,0.03357193,61249.0,61248.0,0.286721]
[1728559896329,0.14765819,61249.0,61248.0,0.286721]
[1728559898625,0.03357193,61249.0,61248.0,0.286721]
[1728559899619,0.002,61249.0,61248.0,0.286721]
[1728559900931,0.408196,61267.0,61248.0,0.476721]
[1728559901229,0.081701,61263.0,61262.0,0.2717]
[1728559902527,0.03193624,61265.0,61264.0,0.081699]
[1728559902528,0.11363424,61265.0,61264.0,0.081699]
[1728559903827,0.085698,61265.0,61264.0,0.081699]
[1728559904027,0.004,61265.0,61264.0,0.081699]
[1728559904226,0.3608,61266.0,61265.0,0.081698]
[1728559904430,0.081689,61272.0,61271.0,0.08169]
[1728559905636,0.1049823,61272.0,61271.0,0.08169]
[1728559906836,0.13654278,61272.0,61271.0,0.08169]
[1728559907132,0.22870355,61272.0,61271.0,0.09869]
[1728559907834,0.26980958,61272.0,61271.0,0.09869]
[1728559908029,0.26980958,61272.0,61271.0,0.017]
[1728559908333,0.1785532,61272.0,61271.0,0.017]
[1728559910932,0.28730943,61272.0,61271.0,0.017]
[1728559911135,0.28730943,61272.0,61271.0,0.01196773]
[1728559911835,0.28731339,61272.0,61271.0,0.01196773]
[1728559913945,0.64811339,61272.0,61271.0,0.01196773]
[1728559914742,0.4677823,61272.0,61271.0,0.01196773]
[1728559917046,0.1069823,61272.0,61271.0,0.01196773]
[1728559918546,0.2269823,61272.0,61271.0,0.01196773]
[1728559921843,0.34871316,61272.0,61271.0,0.01196773]
[1728559922849,0.2097345,61274.0,61271.0,1.09276773]
[1728559922850,0.27111765,61274.0,61271.0,1.09276773]
[1728559923056,0.3608,61291.0,61271.0,1.09276773]
[1728559923057,0.13030899,61290.0,61282.0,0.081675]
[1728559923347,0.36897696,61302.0,61282.0,0.081675]
[1728559923348,0.16288624,61308.0,61303.0,0.081647]
[1728559923550,0.00818954,61310.0,61303.0,0.562447]
[1728559923551,0.01887591,61306.0,61303.0,0.562447]
[1728559923746,0.16267189,61307.0,61303.0,0.562447]
[1728559923941,0.16267189,61309.0,61303.0,0.3608]
[1728559924148,0.3608,61316.0,61306.0,0.12]
[1728559924149,0.16267189,61311.0,61306.0,0.12]
[1728559924453,0.36324677,61322.0,61319.0,0.081626]
[1728559924454,0.00811106,61320.0,61319.0,0.081626]
[1728559924645,0.19244677,61322.0,61319.0,0.081626]
[1728559924838,0.3608,61320.0,61310.0,0.00236]
[1728559925041,0.19,61311.0,61303.0,0.3608]
[1728559925245,0.19,61306.0,61302.0,0.3608]
[1728559925547,0.19,61309.0,61303.0,0.081647]
[1728559925751,0.19,61306.0,61302.0,0.3608]
[1728559925954,0.271647,61303.0,61302.0,0.3608]
[1728559926141,0.081647,61303.0,61302.0,0.3608]
[1728559926345,0.008,61304.0,61298.0,0.081653]
[1728559926640,0.081654,61298.0,61297.0,0.0024461]
[1728559927644,0.19,61299.0,61291.0,0.081662]
[1728559927950,0.7216,61300.0,61291.0,0.081662]
[1728559927951,0.081654,61298.0,61297.0,0.012]
[1728559928140,0.7216,61300.0,61287.0,0.081668]
[1728559928141,0.4894,61299.0,61287.0,0.081668]
[1728559928341,0.081663,61292.0,61287.0,0.081668]
[1728559928547,0.032,61291.0,61288.0,0.081667]
[1728559929254,0.081669,61287.0,61286.0,0.3608]
[1728559929455,0.081669,61287.0,61286.0,0.08167]
[1728559929650,0.474464,61291.0,61288.0,0.081667]
[1728559929954,0.081665,61290.0,61288.0,0.081667]
[1728559930154,0.081665,61290.0,61288.0,0.095667]
[1728559930652,0.033,61291.0,61290.0,0.081665]
[1728559930950,0.034,61291.0,61290.0,0.081665]
[1728559931350,0.033,61291.0,61290.0,0.081665]
[1728559931751,0.001,61291.0,61290.0,0.081665]
[1728559931944,0.0319,61296.0,61290.0,0.081665]
[1728559932151,0.0319,61296.0,61295.0,0.081658]
[1728559933063,0.0506362,61296.0,61295.0,0.081658]
[1728559933453,0.3608,61312.0,61295.0,0.5508]
[1728559933759,0.113548,61303.0,61302.0,0.081649]
[1728559934847,0.02542738,61309.0,61308.0,0.081641]
[1728559935046,0.08808646,61309.0,61308.0,0.081641]
[1728559935353,0.00644746,61309.0,61308.0,0.081641]
[1728559935661,0.01913225,61313.0,61312.0,0.081635]
[1728559935853,0.01913225,61313.0,61312.0,0.271635]
[1728559936051,0.3608,61325.0,61322.0,0.081622]
[1728559936254,0.081619,61324.0,61322.0,0.081622]
[1728559936453,0.081881,61323.0,61322.0,0.081622]
[1728559936652,0.081623,61322.0,61319.0,0.081626]
[1728559936952,0.081623,61321.0,61319.0,0.081626]
[1728559937156,0.081623,61321.0,61317.0,0.19]
[1728559937351,0.00026,61323.0,61317.0,0.19]
[1728559937662,0.03340368,61323.0,61322.0,0.082622]
[1728559937860,0.01426,61323.0,61322.0,0.082622]
[1728559938055,0.014,61321.0,61319.0,0.001]
[1728559938256,0.03997897,61320.0,61319.0,0.082626]
[1728559938563,0.17584288,61321.0,61319.0,0.444426]
[1728559938760,0.09008859,61320.0,61319.0,0.444426]
[1728559938951,0.14565659,61320.0,61319.0,0.444426]
[1728559939260,0.03997839,61320.0,61319.0,0.634426]
[1728559939457,0.12719983,61321.0,61319.0,0.5528]
[1728559939762,0.12719983,61321.0,61320.0,0.081625]
[1728559939958,0.0021,61321.0,61320.0,0.081625]
[1728559940268,0.07149847,61321.0,61320.0,0.081625]
[1728559940456,0.03997013,61321.0,61319.0,0.55141927]
[1728559940651,0.12945661,61325.0,61319.0,0.63068527]
[1728559940855,0.12945661,61325.0,61324.0,0.632419]
[1728559941050,0.03997177,61325.0,61324.0,0.632419]
[1728559941456,0.12945661,61330.0,61329.0,0.081613]
[1728559942059,0.16942703,61330.0,61329.0,0.081613]
[1728559942369,0.0618,61332.0,61331.0,0.08161]
[1728559943252,0.0001,61335.0,61334.0,0.081606]
[1728559944049,0.0001,61335.0,61334.0,0.442406]
[1728559944461,0.081705,61335.0,61334.0,0.442406]
[1728559944662,0.081705,61335.0,61331.0,0.001]
[1728559944663,0.63051697,61335.0,61331.0,0.001]
[1728559944855,0.081617,61326.0,61325.0,0.081618]
[1728559945256,0.3608,61329.0,61327.0,0.081615]
[1728559945257,0.081613,61329.0,61327.0,0.081615]
[1728559945561,0.19,61334.0,61328.0,0.081614]
[1728559945758,0.19,61334.0,61324.0,0.19]
[1728559946159,0.19,61334.0,61333.0,0.081607]
[1728559946356,0.271606,61334.0,61333.0,0.081607]
[1728559946556,0.145,61339.0,61334.0,0.014]
[1728559946855,0.145,61339.0,61338.0,0.081601]
[1728559947358,0.145,61339.0,61333.0,0.3608]
[1728559947359,0.081604,61336.0,61335.0,0.081604]
[1728559948768,0.442404,61336.0,61335.0,0.014]
[1728559949764,0.3608,61336.0,61326.0,0.081616]
[1728559949969,0.271615,61327.0,61326.0,0.081616]
[1728559950163,0.19,61327.0,61320.0,0.00244611]
[1728559950368,0.3608,61329.0,61320.0,0.00244611]
[1728559950369,0.632423,61321.0,61320.0,0.00244611]
[1728559950855,0.442423,61321.0,61320.0,0.08407111]
[1728559951056,0.442423,61321.0,61320.0,0.081625]
[1728559951057,0.472623,61321.0,61320.0,0.081625]
[1728559951262,0.081629,61317.0,61313.0,0.081634]
[1728559951465,0.19,61318.0,61315.0,0.08163]
[1728559951677,0.08163,61316.0,61315.0,0.08163]
[1728559953066,0.081637,61311.0,61310.0,0.081637]
[1728559953261,0.44243,61316.0,61314.0,0.081631]
[1728559953262,0.081632,61315.0,61314.0,0.081631]
[1728559953463,0.081649,61302.0,61301.0,0.08165]
[1728559953671,0.081653,61299.0,61298.0,0.081653]
[1728559953869,0.19,61299.0,61289.0,0.3608]
[1728559954070,0.3608,61297.0,61296.0,0.081657]
[1728559954270,0.081659,61294.0,61293.0,0.08166]
[1728559954471,0.5508,61297.0,61289.0,0.0191219]
[1728559954675,0.5508,61297.0,61286.0,0.19]
[1728559954676,0.081658,61296.0,61287.0,0.081668]
[1728559954876,0.081658,61296.0,61287.0,0.081669]
[1728559955367,0.081658,61296.0,61295.0,0.081658]
[1728559955961,0.082658,61296.0,61295.0,0.081658]
[1728559956178,0.001,61296.0,61295.0,0.081658]
[1728559957066,0.001,61296.0,61295.0,0.095658]
[1728559957663,0.001,61296.0,61295.0,0.027]
[1728559957968,0.001,61296.0,61295.0,0.108658]
[1728559958475,0.19,61297.0,61296.0,0.081657]
[1728559960470,0.19,61297.0,61296.0,0.095657]
[1728559960672,0.191,61297.0,61296.0,0.108657]
[1728559961264,0.191,61297.0,61284.0,0.00236]
[1728559961265,1.83124,61297.0,61284.0,0.00236]
[1728559961468,1.83124,61297.0,61284.0,0.084033]
[1728559961469,0.271671,61285.0,61284.0,0.084033]
[1728559961776,0.271671,61285.0,61284.0,0.081673]
[1728559962276,0.081676,61282.0,61281.0,0.081676]
[1728559962473,0.271676,61282.0,61281.0,0.081676]
[1728559963073,0.19,61282.0,61274.0,0.01903848]
[1728559963275,0.08168,61280.0,61279.0,0.081679]
[1728559963573,0.08168,61280.0,61265.0,0.3608]
[1728559963574,0.081697,61266.0,61265.0,0.3608]
[1728559963876,0.081697,61266.0,61237.0,0.06440516]
[1728559963877,0.081706,61259.0,61255.0,0.081711]
[1728559964077,0.081706,61259.0,61247.0,0.4239]
[1728559964271,0.081706,61259.0,61249.0,0.01886902]
[1728559964472,0.461706,61259.0,61249.0,0.01886902]
[1728559964770,0.271706,61259.0,61249.0,0.01886902]
[1728559964975,0.271706,61259.0,61253.0,0.081713]
[1728559965167,0.271706,61259.0,61242.0,0.081727]
[1728559965168,0.88861758,61259.0,61242.0,0.081727]
[1728559965471,0.88861758,61259.0,61238.0,0.3608]
[1728559965472,0.19,61243.0,61238.0,0.3608]
[1728559965679,0.19,61239.0,61238.0,0.442534]
[1728559966381,0.28,61242.0,61240.0,0.081731]
[1728559967077,0.081725,61245.0,61238.0,0.3748]
[1728559967283,0.08172,61249.0,61245.0,0.081724]
[1728559967580,0.081733,61239.0,61238.0,0.014]
[1728559967783,0.081733,61239.0,61223.0,0.3608]
[1728559967784,0.43630841,61239.0,61232.0,0.13004587]
[1728559967983,0.28,61233.0,61232.0,0.081742]
[1728559969377,0.001,61233.0,61232.0,0.082742]
[1728559969683,0.001,61233.0,61232.0,0.082662]
[1728559969988,0.001,61233.0,61232.0,0.457462]
[1728559970984,0.001,61233.0,61232.0,1.057462]
[1728559971892,0.001,61233.0,61232.0,0.457462]
[1728559972886,0.082741,61233.0,61232.0,0.457462]
[1728559973185,0.082741,61233.0,61232.0,0.3758]
[1728559977387,0.001,61233.0,61232.0,0.3758]
[1728559977584,0.082741,61233.0,61232.0,0.3758]
[1728559978480,0.082741,61233.0,61232.0,0.457542]
[1728559979392,0.082741,61233.0,61232.0,0.50584587]
[1728559979588,0.082741,61233.0,61232.0,0.457542]
[1728559980086,0.01507235,61238.0,61232.0,0.3758]
[1728559980292,0.081741,61233.0,61232.0,0.3758]
[1728559980493,0.081736,61237.0,61232.0,0.3758]
[1728559980683,0.361741,61233.0,61232.0,0.3758]
[1728559981078,0.361741,61233.0,61232.0,0.3618]
[1728559981279,0.361741,61233.0,61232.0,0.3758]
[1728559981785,0.37691412,61233.0,61232.0,0.3758]
[1728559982691,0.31965008,61233.0,61232.0,0.3618]
[1728559982895,0.31965008,61233.0,61232.0,0.3758]
[1728559982896,0.37691412,61233.0,61232.0,0.3758]
[1728559983592,0.37791412,61233.0,61232.0,0.3778]
[1728559984085,0.37791412,61233.0,61216.0,0.081763]
[1728559984086,0.081743,61232.0,61216.0,0.081763]
[1728559984285,0.361762,61217.0,61216.0,0.081763]
[1728559984481,0.081766,61214.0,61213.0,0.081767]
[1728559984685,0.361766,61214.0,61213.0,0.081767]
[1728559984981,0.28,61214.0,61213.0,0.081767]
[1728559986892,0.001,61214.0,61212.0,0.37621861]
[1728559987195,0.002,61214.0,61213.0,0.089767]
[1728559987394,0.282,61214.0,61213.0,0.089767]
[1728559987595,0.363766,61214.0,61213.0,0.008]
[1728559989299,0.363766,61214.0,61209.0,0.00245063]
[1728559989300,0.081771,61210.0,61209.0,0.00245063]
[1728559989890,0.081771,61210.0,61209.0,0.27202007]
[1728559990492,0.272771,61210.0,61209.0,0.12543154]
[1728559990696,0.272771,61210.0,61209.0,0.22245878]
[1728559991000,0.272771,61210.0,61209.0,0.12543154]
[1728559991195,0.273771,61210.0,61209.0,0.12543154]
[1728559991698,0.273771,61210.0,61200.0,0.11270904]
[1728559991699,1.48763678,61210.0,61200.0,0.11270904]
[1728559991897,1.48763678,61210.0,61194.0,0.11270904]
[1728559991898,0.3608,61201.0,61194.0,0.11270904]
[1728559992087,0.3608,61201.0,61189.0,0.0649]
[1728559992088,0.36074378,61201.0,61196.0,0.08179]
[1728559992602,0.08179,61197.0,61196.0,0.08179]
[1728559992801,0.27179,61197.0,61196.0,0.08179]
[1728559993197,0.00445153,61210.0,61199.0,0.081786]
[1728559993405,0.081773,61209.0,61208.0,0.081773]
[1728559993993,0.081765,61215.0,61208.0,0.19]
[1728559994191,0.3608,61218.0,61211.0,0.19]
[1728559994390,0.081762,61217.0,61216.0,0.081763]
[1728559995602,0.3608,61218.0,61217.0,0.081762]
[1728559996310,0.3618,61218.0,61217.0,0.081762]
[1728559997401,0.3618,61218.0,61217.0,0.442562]
[1728559997402,0.002,61218.0,61217.0,0.442562]
[1728559997593,0.002,61218.0,61211.0,0.008]
[1728559997908,0.081763,61216.0,61214.0,0.14662225]
[1728559998093,0.081765,61215.0,61214.0,0.14662225]
[1728559999403,0.281,61218.0,61217.0,0.081762]
[1728559999597,0.362761,61218.0,61217.0,0.081762]
[1728559999797,0.363761,61218.0,61217.0,0.081762]
[1728560000002,0.362761,61218.0,61217.0,0.081762]
[1728560000605,0.362761,61218.0,61217.0,0.109762]
[1728560000808,0.082761,61218.0,61217.0,0.109762]
[1728560001199,0.001,61218.0,61217.0,0.109762]
[1728560001600,0.082761,61218.0,61217.0,0.109762]
[1728560002207,0.082761,61218.0,61217.0,0.15845185]
[1728560002502,0.082761,61218.0,61217.0,0.109762]
[1728560004202,0.082761,61218.0,61217.0,0.1747075]
[1728560004508,0.082761,61218.0,61217.0,0.109762]
[1728560006707,0.082761,61218.0,61217.0,0.22911007]
[1728560008802,0.081755,61223.0,61222.0,0.081754]
[1728560009012,0.081755,61223.0,61222.0,0.20097914]
[1728560009218,0.00245094,61229.0,61222.0,0.48000698]
[1728560009405,0.00245094,61229.0,61228.0,0.081747]
[1728560009614,0.00245094,61229.0,61228.0,0.20069099]
[1728560010407,0.08419694,61229.0,61228.0,0.081747]
[1728560010808,0.08419694,61229.0,61228.0,0.16296626]
[1728560011014,0.09219694,61229.0,61228.0,0.082747]
[1728560011510,0.09219694,61229.0,61228.0,0.096747]
[1728560012509,0.01045094,61229.0,61228.0,0.096747]
[1728560012912,0.03158152,61230.0,61228.0,0.015]
[1728560013220,0.03158151,61229.0,61228.0,0.095747]
[1728560013418,0.03258151,61229.0,61228.0,0.109747]
[1728560013717,0.001,61229.0,61228.0,0.109747]
[1728560013915,0.03258151,61229.0,61228.0,0.109747]
[1728560014229,0.15336458,61229.0,61228.0,0.109747]
[1728560015116,0.15436458,61229.0,61228.0,0.109747]
[1728560015819,0.2832426,61229.0,61228.0,0.109747]
[1728560016616,0.15436458,61229.0,61228.0,0.109747]
[1728560017117,0.35020848,61229.0,61228.0,0.109747]
[1728560017309,0.35020848,61229.0,61228.0,0.028]